Cogmind - Beta 9.6 @@@ ROGUE MODE // 2020.05.29 @ 11:23:08 Player: TaxEvasionist Result: Destroyed by L-41 Fighter with Axe Performance ------------- Evolutions (4) 2000 Regions Visited (7) 1400 Robots Destroyed (160) 800 Value Destroyed (5016) 5016 Prototype IDs (8) 160 Alien Tech Used (0) 0 Bonus (880) 880 TOTAL SCORE: 10256 Bonus ------- High Alert Combat Kills 880 Cogmind --------- Core Integrity 0/850 Matter 300/300 Energy 100/100 System Corruption 1% Temperature Cool (0) Movement Core (200) Ox3 Location -6/Lower Caves Parts ------- > --- POWER (2) -------- (None) > --- PROPULSION (4) --- Cooled VTOL Module > --- UTILITY (7) ------ Small Storage Unit Medium Storage Unit Signal Interpreter Hacking Suite > --- WEAPON (2) ------- (None) > --- INVENTORY (10) --- Fusion Compressor Energy Well (500) Flak Gun Heavy Machine Gun Improved Grenade Launcher Datajack Peak State ------------ > --- POWER ------------ Light Deuterium Engine Micro Nuclear Core > --- PROPULSION ------- VTOL Module VTOL Module Improved VTOL Module Cooled VTOL Module > --- UTILITY ---------- Medium Storage Unit Advanced Weight Redist. System Advanced Weight Redist. System Improved Sensor Array Signal Interpreter Improved ECM Suite Hacking Suite > --- WEAPON ----------- Autogun Flak Gun > --- INVENTORY -------- Light Nuclear Core Energy Well Improved Transmission Jammer EM Shield Flak Gun Flak Gun Improved Grenade Launcher Datajack [Rating: 45] Favorites ----------- Power Improved Ion Engine Engine Improved Ion Engine Power Core Micro Nuclear Core Propulsion Light Treads Treads Light Treads Leg Carbon-fiber Leg Wheel Armored Wheel Flight Unit Cooled VTOL Module Utility High-capacity Storage Unit Device Advanced Weight Redist. System Storage High-capacity Storage Unit Processor Signal Interpreter Hackware Hacking Suite Protection Propulsion Shielding Weapon Heavy Assault Rifle Energy Gun EM Pulse Gun Energy Cannon Proton Cannon Ballistic Gun Heavy Assault Rifle Launcher Grenade Launcher Special Weapon Flamer Slashing Weapon Axe Special Melee Weapon Datajack Build | -11 -10 -9 -8 -7 -6 -6 -6 ------- Run | Scr Mat Mat Mat Fac Fac Low Low Slots Evolved 8 | . . 2 2 2 2 . . Power 1 | . . . . 1 . . . Propulsion 2 | . . 1 1 . . . . Utility 5 | . . 1 1 1 2 . . Weapon . | . . . . . . . . Parts Attached 172 | 7 7 17 86 40 7 6 2 Power 24 | 1 1 2 11 7 . 2 . Engine 18 | 1 1 2 10 3 . 1 . Core 6 | . . . 1 4 . 1 . Reactor . | . . . . . . . . Propulsion 61 | 2 2 7 38 12 . . . Treads 46 | 2 2 7 34 1 . . . Leg 1 | . . . 1 . . . . Wheel 2 | . . . 2 . . . . Hover . | . . . . . . . . Flight 12 | . . . 1 11 . . . Utility 20 | 2 2 1 4 7 2 2 . Device 8 | 1 . . . 5 1 1 . Storage 7 | 1 2 1 2 . . 1 . Processor 1 | . . . . 1 . . . Hackware 2 | . . . . 1 1 . . Protection 2 | . . . 2 . . . . Artifact . | . . . . . . . . Weapon 67 | 2 2 7 33 14 5 2 2 Energy Gun 19 | 1 2 2 10 3 . 1 . Energy Cannon 1 | . . . . . 1 . . Ballistic Gun 26 | 1 . 5 10 6 2 1 1 Ballistic Cannon . | . . . . . . . . Launcher 13 | . . . 8 3 2 . . Special Weapon 1 | . . . . . . . 1 Impact Weapon . | . . . . . . . . Slashing Weapon 2 | . . . 2 . . . . Piercing Weapon . | . . . . . . . . Special Melee Weapon 5 | . . . 3 2 . . . Unidentified Prototypes 6 | . . 1 4 1 . . . Parts Lost 74 | . 2 4 41 10 1 9 7 Power 11 | . . . 5 2 . 3 1 Propulsion 27 | . . 1 19 4 1 2 . Utility 9 | . 1 . 3 . . 2 3 Weapon 27 | . 1 3 14 4 . 2 3 Highest Loss Streak 9 | . 1 3 7 5 1 9 6 Average Slot Usage (%) 95 | . 97 99 96 96 98 76 67 Engine 8 | . 14 11 6 2 6 5 5 Core 1 | . . . 1 12 6 2 . Treads 26 | . 27 33 32 . . . . Flight 3 | . . . . 29 24 11 6 Device 3 | . 1 . . 18 26 22 17 Storage 28 | . 24 33 33 7 6 7 13 Processor 1 | . . . . 6 6 6 6 Energy Gun 5 | . 14 6 3 4 . 1 4 Ballistic Gun 11 | . 14 14 11 8 11 5 3 Naked Turns . | . . . . . . . . Heaviest Build 120 | 11 73 112 120 31 33 33 31 Greatest Support 83 | 40 40 60 83 39 30 25 12 Greatest Overweight (x) 3 | . 1 1 2 1 1 2 3 Average Overweight (x) . | . . 1 1 . . 1 2 Largest Inventory Capacity 32 | 6 20 28 32 32 8 10 10 Average Capacity 23 | 5 16 27 29 8 8 8 10 Most Carried 31 | 6 20 28 31 29 8 8 7 Average Carried 22 | 4 14 26 28 8 7 7 6 Final Capacity 32 | 6 20 28 32 8 8 10 10 Final Carried 30 | 6 20 28 30 7 8 6 6 Class Distribution -------------------- 66% | Hauler-Mutant 20% | Scavenger-Mutant 5% | Scavenger-Sprinter 4% | Mutant Dominant Class ---------------- Hauler-Mutant | -10/Materials Hauler-Mutant | -9/Materials Hauler-Mutant | -8/Materials Scavenger-Sprinter | -7/Factory Scavenger-Sprinter | -6/Factory Scavenger-Mutant | -6/Lower Caves Scavenger-Mutant | -6/Lower Caves Resources | -11 -10 -9 -8 -7 -6 -6 -6 ----------- Run | Scr Mat Mat Mat Fac Fac Low Low Matter Collected 3933 | 262 199 435 2149 535 49 259 45 Remotely 120 | 100 20 . . . . . . Salvage Created 5923 | 57 624 1062 3559 389 49 118 65 Parts 332 | 3 48 71 187 16 4 2 1 Haulers Intercepted 7 | . 2 1 4 . . . . Recyclers Shooed 2 | . . 1 1 . . . . Parts Field Recycled . | . . . . . . . . Retrieved Matter . | . . . . . . . . Parts Self-Destructed 7 | . . . . . . 6 1 Prevented 1 | . . . . . . . 1 Kills | -11 -10 -9 -8 -7 -6 -6 -6 ------- Run | Scr Mat Mat Mat Fac Fac Low Low Combat Hostiles Destroyed 131 | . 12 25 78 12 1 2 1 Melee 4 | . . . 4 . . . . Guns 108 | . 12 23 59 10 1 2 1 AOE 18 | . . 2 14 2 . . . Classes Destroyed 15 | 1 6 3 4 . 1 . . Worker 6 | . 1 . 5 . . . . Builder 2 | . 1 . 1 . . . . Tunneler 1 | . . . 1 . . . . Hauler 7 | . 2 1 4 . . . . Recycler 4 | 1 2 . 1 . . . . Mechanic 1 | . . . 1 . . . . Operator 6 | . 1 2 3 . . . . Watcher 2 | . . 2 . . . . . Swarmer 43 | . 9 9 17 8 . . . Grunt 62 | . 3 9 45 3 . 2 . Brawler 4 | . . 1 3 . . . . Duelist 1 | . . . 1 . . . . Sentry 18 | . . 6 10 1 . . 1 Hunter 2 | . . . 2 . . . . Programmer 1 | . . . . . 1 . . Best Kill Streak 16 | 1 8 4 16 3 1 2 1 Combat Bots Only 9 | . 6 4 9 3 1 2 1 Max Kills in Single Turn 2 | 1 2 2 2 1 1 1 1 Gunslinging 1 | . . 1 1 . . . . Exploded 1 | . . 1 1 1 . . . Melee 1 | . . . 1 . . . . Uniques/NPCs Destroyed . | . . . . . . . . Combat | -11 -10 -9 -8 -7 -6 -6 -6 -------- Run | Scr Mat Mat Mat Fac Fac Low Low Damage Taken 10244 | . 356 1165 5782 936 89 532 1384 Core 1715 | . 35 132 501 161 32 117 737 Absorbed by Shields . | . . . . . . . . Core Remaining (%) 67 | 100 86 67 8 77 . . . Volleys Fired 426 | 4 38 80 245 38 8 10 3 Largest 2 | 2 2 2 2 2 2 2 2 Hottest 110 | 60 60 79 110 84 98 98 88 Shots Fired 801 | 8 76 157 453 75 15 12 5 Gun 747 | 8 76 157 410 73 8 10 5 Cannon 5 | . . . . . 3 2 . Launcher 49 | . . . 43 2 4 . . Special . | . . . . . . . . Kinetic 536 | 4 38 95 331 48 8 10 2 Thermal 108 | 4 . 21 58 25 . . . Explosive 31 | . . . 25 2 4 . . Electromagnetic 126 | . 38 41 39 . 3 2 3 Robot Hit Streak 25 | 3 8 18 25 18 7 8 15 Robot Miss Streak 7 | 3 3 4 7 7 . 2 2 Penetration Max . | . . . . . . . . Secondary Targets 9 | . 1 1 6 1 . . . Max Gunslinging Chain 1 | . 1 1 1 1 . . . Shots Hit Robots 574 | 4 44 111 347 50 5 9 4 Core Hits 297 | 2 23 45 184 32 2 5 4 Critical Hits 5 | . . . 5 . . . . Critical Kills 3 | . . . 3 . . . . Critical Parts Destroyed 1 | . . . 1 . . . . Melee Attacks 19 | . . . 14 5 . . . Impact . | . . . . . . . . Slashing 14 | . . . 14 . . . . Piercing . | . . . . . . . . Sneak Attacks 5 | . . . . 5 . . . Combat Hostiles 5 | . . . . 5 . . . Follow-up Attacks . | . . . . . . . . Damage Inflicted 10881 | 46 687 1710 7196 858 96 210 78 Guns 7921 | 46 560 1537 4786 687 50 177 78 Cannons 46 | . . . . . 13 33 . Explosions 2554 | . 127 173 2050 171 33 . . Melee 356 | . . . 356 . . . . Ramming 4 | . . . 4 . . . . Kinetic 5554 | 13 209 856 3777 448 50 177 24 Thermal 1752 | 33 127 396 957 239 . . . Explosive 1392 | . . . 1188 171 33 . . Electromagnetic 1823 | . 351 458 914 . 13 33 54 Impact . | . . . . . . . . Slashing 356 | . . . 356 . . . . Piercing . | . . . . . . . . Highest Corruption 7 | . . . 7 . . . 1 Average Corruption 5 | . . . 5 . . . 1 Corruption Purged . | . . . . . . . . Effects 49 | . . . 49 . . . . Message Errors 13 | . . . 13 . . . . Matter Fused 12 | . . . 12 . . . . Heat Flow Errors 2 | . . . 2 . . . . Energy Discharges 2 | . . . 2 . . . . Parts Rejected 1 | . . . 1 . . . . Data Loss (minor) 10 | . . . 10 . . . . Data Loss (major) 1 | . . . 1 . . . . Misfires 1 | . . . 1 . . . . Targeting Errors 4 | . . . 4 . . . . Weapon Failures 3 | . . . 3 . . . . Overload Shots . | . . . . . . . . Overflow Damage 179 | . 12 . 129 38 . . . Projectiles . | . . . . . . . . Explosions 163 | . 12 . 113 38 . . . Melee 16 | . . . 16 . . . . Knockbacks . | . . . . . . . . Impact . | . . . . . . . . Kinetic . | . . . . . . . . Secondary . | . . . . . . . . Self-Inflicted Damage 782 | . . 112 644 . 26 . . Shots 29 | . . 3 25 . 1 . . Rammed 1 | . . . 1 . . . . Targets Rammed 1 | . . . 1 . . . . Kicked . | . . . . . . . . Crushed . | . . . . . . . . Highest Temperature 314 | . 12 126 221 314 118 83 . Average Temperature 59 | . 10 35 49 110 40 30 . Received Heat Transfer 2919 | . 12 312 1992 99 . 252 252 Effects 1 | . . . . 1 . . . Energy Bleed 1 | . . . . 1 . . . Siege Activations . | . . . . . . . . Robots Corrupted 1 | . . . 1 . . . . Combat Hostiles 1 | . . . 1 . . . . Parts Fried 3 | . . . 2 . . . 1 Impact Corruptions . | . . . . . . . . Robots Melted . | . . . . . . . . Combat Hostiles . | . . . . . . . . Parts Melted 6 | . . . 3 3 . . . Heat Transferred 3167 | 75 100 781 1730 481 . . . Parts Sabotaged . | . . . . . . . . Parts Stolen . | . . . . . . . . Parts Stripped . | . . . . . . . . Power Chain Reactions 9 | . 2 3 4 . . . . Missiles Intercepted . | . . . . . . . . Alert | -11 -10 -9 -8 -7 -6 -6 -6 ------- Run | Scr Mat Mat Mat Fac Fac Low Low Peak Influence 1355 | 5 199 298 1355 692 322 . . Average Influence 387 | 2 87 176 581 585 272 . . Maximum Alert Level 4 | . . 1 4 3 1 . . Low Security (%) 32 | 100 100 48 9 . . . . Level 1 29 | . . 51 25 . 100 . . Level 2 25 | . . . 39 99 . . . Level 3 5 | . . . 12 . . . . Level 4 6 | . . . 13 . . . . Level 5 . | . . . . . . . . High Security . | . . . . . . . . Max Security . | . . . . . . . . Squads Dispatched 29 | . 2 4 18 3 1 . 1 Investigation 11 | . 1 2 7 1 . . . Extermination . | . . . . . . . . Reinforcement 12 | . 1 2 7 1 1 . . Assault 4 | . . . 2 1 . . 1 Garrison 2 | . . . 2 . . . . Intercept . | . . . . . . . . Construction Impeded 4 | . . . 3 1 . . . Haulers Reinforced . | . . . . . . . . Stealth | -11 -10 -9 -8 -7 -6 -6 -6 --------- Run | Scr Mat Mat Mat Fac Fac Low Low Distress Signals 14 | . . 5 8 1 . . . Communications Jammed . | . . . . . . . . Distress Signals . | . . . . . . . . Times Spotted 237 | . 25 42 129 22 2 2 15 Peak Tracking Total 16 | . 5 5 8 6 1 2 16 Tactical Retreats 18 | . . . 14 3 . . 1 Traps | -11 -10 -9 -8 -7 -6 -6 -6 ------- Run | Scr Mat Mat Mat Fac Fac Low Low Traps Triggered 5 | . 1 . 4 . . . . Indirectly 1 | . . . 1 . . . . Trap Hack Attempts 49 | . . . 48 1 . . . Triggered . | . . . . . . . . Disarmed 1 | . . . 1 . . . . Reprogrammed 5 | . . . 5 . . . . Reused 2 | . . . 2 . . . . Traps Extracted . | . . . . . . . . Installed . | . . . . . . . . Triggered 3 | . . . 3 . . . . Machines | -11 -10 -9 -8 -7 -6 -6 -6 ---------- Run | Scr Mat Mat Mat Fac Fac Low Low Machines Disabled 16 | . . 2 13 . 1 . . Max in Single Turn 2 | . . 1 2 . 1 . . Garrison Access 1 | . . . 1 . . . . Machines Sabotaged . | . . . . . . . . Garrisons Compromised . | . . . . . . . . Overloaded Fab Kills . | . . . . . . . . Fab Network Shutdowns . | . . . . . . . . Hacking | -11 -10 -9 -8 -7 -6 -6 -6 --------- Run | Scr Mat Mat Mat Fac Fac Low Low Machines Accessed 28 | . 6 5 14 3 . . . Terminals 17 | . 4 3 8 2 . . . Fabricators . | . . . . . . . . Repair Stations 4 | . 1 1 2 . . . . Recycling Units 3 | . 1 . 2 . . . . Scanalyzers 4 | . . 1 2 1 . . . Garrison Access . | . . . . . . . . Total Hacks 89 | . 18 13 48 10 . . . Successful 49 | . 8 7 29 5 . . . Failed 40 | . 10 6 19 5 . . . Catastrophic 10 | . 2 2 3 3 . . . Database Lockouts . | . . . . . . . . Manual 35 | . 11 7 13 4 . . . Terminals 57 | . 12 9 28 8 . . . Fabricators . | . . . . . . . . Repair Stations 12 | . 5 2 5 . . . . Recycling Units 3 | . 1 . 2 . . . . Scanalyzers 17 | . . 2 13 2 . . . Garrison Access . | . . . . . . . . Terminal Hacks 21 | . 2 2 14 3 . . . Record 3 | . . . 1 2 . . . Robot Analysis 1 | . . . 1 . . . . Prototype ID Bank 1 | . . . 1 . . . . Alert Level 4 | . . 1 3 . . . . Unreport Threat 4 | . . . 3 1 . . . Transport Status 1 | . . . 1 . . . . Recall Investigation 1 | . . . 1 . . . . Hauler Manifests 4 | . 2 1 1 . . . . Registered Components 1 | . . . 1 . . . . Zone Layout 1 | . . . 1 . . . . Fabricator Hacks . | . . . . . . . . Repair Station Hacks 9 | . 4 2 3 . . . . Scan Component 5 | . 2 1 2 . . . . Repair 4 | . 2 1 1 . . . . Recycling Unit Hacks 3 | . 1 . 2 . . . . Report Inventory 3 | . 1 . 2 . . . . Scanalyzer 14 | . . 2 10 2 . . . Insert Component 6 | . . 1 4 1 . . . Analyze 8 | . . 1 6 1 . . . Garrison Access Hacks . | . . . . . . . . Unauthorized Hacks 2 | . 1 1 . . . . . Terminals 2 | . 1 1 . . . . . Operators 2 | . 1 1 . . . . . Fabricators . | . . . . . . . . Repair Stations . | . . . . . . . . Recycling Units . | . . . . . . . . Scanalyzers . | . . . . . . . . Garrison Access . | . . . . . . . . Data Cores Recovered . | . . . . . . . . Used . | . . . . . . . . Hacking Detections 23 | . 5 3 12 3 . . . Full Trace Events 12 | . 4 2 5 1 . . . Feedback Events 1 | . . . 1 . . . . Corruption 1 | . . . 1 . . . . Feedback Blocked . | . . . . . . . . Robot Schematics Acquired . | . . . . . . . . Robots Built . | . . . . . . . . Matter . | . . . . . . . . Time . | . . . . . . . . Total Robot Build Rating . | . . . . . . . . Part Schematics Acquired 6 | . . 1 4 1 . . . Parts Built . | . . . . . . . . Matter . | . . . . . . . . Time . | . . . . . . . . Total Part Build Rating . | . . . . . . . . Parts Repaired 4 | . 2 1 1 . . . . Time 104 | . 52 26 26 . . . . Parts Recycled . | . . . . . . . . Recycled Matter . | . . . . . . . . Retrieved Matter . | . . . . . . . . Retrieved Components . | . . . . . . . . Parts Scanalyzed 6 | . . 1 4 1 . . . Part Schematics Acquired 6 | . . 1 4 1 . . . Parts Damaged . | . . . . . . . . Bothacking | -11 -10 -9 -8 -7 -6 -6 -6 ------------ Run | Scr Mat Mat Mat Fac Fac Low Low Used RIF Installer . | . . . . . . . . Robots Hacked . | . . . . . . . . Non-combat . | . . . . . . . . Combat . | . . . . . . . . Robot Hacks Applied . | . . . . . . . . Relay Couplers Released 1 | . . . 1 . . . . Machine Destruction 1 | . . . 1 . . . . Robots Rewired 1 | . . . . 1 . . . Allies Hacked . | . . . . . . . . Hacks Repelled . | . . . . . . . . Allies | -11 -10 -9 -8 -7 -6 -6 -6 -------- Run | Scr Mat Mat Mat Fac Fac Low Low Total Allies 2 | . . . . 1 . . 1 Largest Group 1 | . . . . 1 . . 1 Highest-Rated Group 135 | . . . . 12 . . 135 Highest-Rated Ally 135 | . . . . 12 . . 135 Total Orders . | . . . . . . . . Ally Attacks 2 | . . . . 2 . . . Total Damage 32 | . . . . 32 . . . Kills . | . . . . . . . . Allies Corrupted . | . . . . . . . . Allies Melted . | . . . . . . . . Intel | -11 -10 -9 -8 -7 -6 -6 -6 ------- Run | Scr Mat Mat Mat Fac Fac Low Low Robot Analysis Total 1 | . . . 1 . . . . Derelict Logs Recovered 1 | . . . . . . 1 . Drone Launches . | . . . . . . . . Drone Recoveries . | . . . . . . . . Exploration | -11 -10 -9 -8 -7 -6 -6 -6 ------------- Run | Scr Mat Mat Mat Fac Fac Low Low Turns Passed 8868 | 138 1008 2257 3952 496 266 410 341 Spaces Moved 4691 | 71 462 974 1552 688 405 325 214 Core 347 | 3 . . . . . 130 214 Treads 3056 | 68 462 974 1552 . . . . Legs . | . . . . . . . . Wheels . | . . . . . . . . Hover . | . . . . . . . . Flight 1288 | . . . . 688 405 195 . Fastest Speed 28 | 50 160 180 180 28 28 30 100 Average Speed 138 | 155 175 180 181 28 36 109 153 Slowest Speed 200 | 160 180 180 200 106 101 150 200 Overloaded Moves 26 | . . . . . . 26 . Propulsion Burnouts . | . . . . . . . . Robots Hopped 7 | . . . . 5 2 . . Cave-ins Triggered . | . . . . . . . . Exploration Rate (%) 40 | 5 56 47 100 14 10 53 36 Regions Visited 7 Branch Regions 2 Pre-discovered Areas . | . . . . . . . . Known Exits Taken 3 | . . . . 1 1 1 . Unknown Exits Taken 4 | 1 1 1 1 . . . . Scrap Searched 5 | . . . . . . 4 1 Spaces Dug 41 | . . . 6 . 35 . . Terrain Destroyed 234 | . 13 14 162 10 35 . . Melee . | . . . . . . . . Projectile . | . . . . . . . . AOE 234 | . 13 14 162 10 35 . . Actions | -11 -10 -9 -8 -7 -6 -6 -6 --------- Run | Scr Mat Mat Mat Fac Fac Low Low Total 6248 | 87 585 1328 2250 901 508 367 222 Wait 728 | . 58 214 252 92 83 27 2 Move 4671 | 70 461 973 1551 678 400 324 214 Hop 6 | . . . . 4 2 . . Pick Up 100 | 6 17 24 29 18 5 . 1 Fast Attach 49 | 7 3 2 18 14 1 4 . Attach 55 | . 1 6 33 10 2 2 1 Detach 8 | . . . 5 3 . . . Swap 68 | . 3 9 35 16 4 . 1 Drop 68 | . 4 20 19 22 3 . . Fire 426 | 4 38 80 245 38 8 10 3 Melee 19 | . . . 14 5 . . . Ram . | . . . . . . . . Kick . | . . . . . . . . Crush 1 | . . . 1 . . . . Escape Stasis . | . . . . . . . . Rewire . | . . . . . . . . Trap 49 | . . . 48 1 . . . Miscellaneous . | . . . . . . . . Route ------- -11/Scrapyard -10/Materials (discovered 2 exits: *Mat / [*Min]) -9/Materials -8/Materials (discovered 3 exits: *Fac x3) -7/Factory -6/Factory -6/Lower Caves -6/Lower Caves (discovered 1 exit: *Fac) History --------- Turn | Location | Event 2 | -11/Scrapyard | Met Revision 17 32 | -11/Scrapyard | Discovered new exit (range 15) 139 | -11/Scrapyard | Entered Materials 306 | -10/Materials | Build established: Mutant 414 | -10/Materials | Discovered new exit (range 9) 657 | -10/Materials | Build established: Hauler-Mutant 1017 | -10/Materials | Repaired Lgt. Treads 1044 | -10/Materials | Repaired Lgt. Treads 1120 | -10/Materials | Discovered new exit (range 7) 1147 | -10/Materials | Entered another Materials area 1147 | -9/Materials | Evolved 2 slots: Propulsion x1, Utility x1 1826 | -9/Materials | Repaired Lgt. Treads 2599 | -9/Materials | Discovered new exit (range 11) 2623 | -9/Materials | Lost 3 parts (1n2w) 3187 | -9/Materials | Build established: Scavenger-Mutant 3404 | -9/Materials | Entered another Materials area 3404 | -8/Materials | Evolved 2 slots: Propulsion x1, Utility x1 3806 | -8/Materials | Lost 7 parts (4n1u2w) 4053 | -8/Materials | Build established: Hauler-Mutant 4549 | -8/Materials | Discovered new exit (range 17) 4928 | -8/Materials | Lost 5 parts (1p3n1w) 4933 | -8/Materials | Destroyed 9 combat bots 5139 | -8/Materials | Repaired Lgt. Treads 5374 | -8/Materials | Core integrity fell below 50% 5438 | -8/Materials | Lost 4 parts (1p2n1w) 5509 | -8/Materials | Discovered new exit (range 16) 5521 | -8/Materials | Lost 4 parts (1p1n2w) 5859 | -8/Materials | Lost 6 parts (2n1u3w) 6471 | -8/Materials | Lost 3 parts (1u2w) 6491 | -8/Materials | Discovered new exit (range 5) 6604 | -8/Materials | First assault squad dispatched 6622 | -8/Materials | Garrison activated, responded to threat 6946 | -8/Materials | Core integrity fell below 20% 7356 | -8/Materials | Entered Factory 7356 | -7/Factory | Evolved 2 slots: Power x1, Utility x1 7574 | -7/Factory | Lost 5 parts (2n3w) 7756 | -7/Factory | First assault squad dispatched 7846 | -7/Factory | Discovered new exit (range 15) 7850 | -7/Factory | Identified exit to Factory 7852 | -7/Factory | Entered another Factory area 7852 | -6/Factory | Evolved 2 slots: Utility x2 7931 | -6/Factory | Build established: Scavenger-Sprinter 8108 | -6/Factory | Discovered new exit (range 5) 8112 | -6/Factory | Identified exit to Lower Caves 8118 | -6/Factory | Entered Lower Caves 8123 | -6/Lower Caves | Learned Factory emergency access door positions 8351 | -6/Lower Caves | Lost 9 parts (3p2n2u2w) 8367 | -6/Lower Caves | Encountered a Warlord checkpoint 8466 | -6/Lower Caves | Discovered new exit (range 11) 8525 | -6/Lower Caves | Identified exit to Lower Caves 8528 | -6/Lower Caves | Entered another Lower Caves area 8544 | -6/Lower Caves | Discovered new exit (range 16) 8565 | -6/Lower Caves | Identified exit to Factory 8606 | -6/Lower Caves | Attracted the attention of an 0b10 checkpoint 8637 | -6/Lower Caves | Build established: Scavenger-Mutant 8782 | -6/Lower Caves | Attracted the attention of an 0b10 outpost 8829 | -6/Lower Caves | Core integrity fell below 50% 8851 | -6/Lower Caves | Core integrity fell below 20% 8852 | -6/Lower Caves | Lost 6 parts (1p3u2w) 8869 | -6/Lower Caves | Destroyed by L-41 Fighter with Axe Last Messages --------------- 08565_ EXIT=IDENTIFIED: FACTORY 08606_ Y-54 Guardian: "INTERCEPTING UNREGISTERED DERELICT." 08670_ Flamer destroyed. 08681_ Gatling Laser fried. 08681_ Y-54 Guardian destroyed. 08684_ Acquired 25 matter. 08685_ Imp. Heat Sink self-destruct mechanism malfunctions. 08782_ Y-64 Sentinel: "DETECTED UNIDENTIFIED DERELICT." 08782_ Slug penetrates Wall. 08786_ Y-64 Sentinel: "REQUESTING BACKUP." 08797_ Hvy. Riot Gun destroyed. 08797_ Slug penetrates Wall. 08810_ Lgt. Angular Momentum Engine destroyed. 08818_ Adv. Heat Sink destroyed. 08819_ Adv. Weight Redist. System destroyed. 08821_ Flak Gun destroyed. 08821_ Adv. Weight Redist. System destroyed. 08836_ S-27 Virus destroyed. A strange signal echoes through the caves. [Achievement: 10k Club] Map ----- +----------------------------------------------------+ | | | | | | | | | | | | | | | ?????????????????????????????????????????????????? | | ?????????????????????????????????????????????????? | | ?????????????????????????????????????????????????? | | ?????????????????????????????????????????????????? | | ?????????????????????????????????????????????????? | | ?????????????????????????????????????????????????? | | ?????????????????????????????????????????????????? | | ?????????????????????????????????????????????????? | | ?????????????????????????????????????????????????? | | ?????????????????????????????????????????????????? | | ?????????????????????????????????????????????????? | | ?????????????????????????????????????????????????? | | ?????????????????????????????????????????????????? | | ?????????????????????????????????????????????????? | | ?????????????????????????????????????????????????? | | ??????????????????????####???????????????????????? | | ??????????????????????# ##??????????????????????? | | ?????????????#????????# #??????????????????????? | | ?????????????# ?##???# @#??????????????????????? | | ????????????## ## ???# l#?????????????????#??##? | | ????????????# ?## ##????????????????? ## | | ????????????# ## sp#?####????????????? | | ????????????# ## #????????????? | | ????????????# ##???????????? | | ????????????## ##??????????? | | ?????????????## g #### #?????? | | ??????????????#### #?????? | | ?????????????????# #??????# | | ?????????????????##### #####?????## | | ?????????????????###?## ##??????#### | | ????????????????## #?# ###?????### | | ??????????####### ## ######????#### | | ??????????# #?## #????# #? | | ??????????# #?# #???## #?? | | ????????????###### ### ##??# ## #?# | | ?????????????????# ## #??# #### ### | | ?????????????????# %* #??# #??# ## | | ?????????????????## ##??## ##??# | | ??????????????????###### #????### #???# | | ???????????????????????#### ###????# #???# | | ??????????????????????????# ##???# #???# | | ?????????????????????????## ##??# #???# | | ???????????????????# ## #### #???# | +----------------------------------------------------+ Best States ------------- Heat Dissipation 56 Energy Generation 25 Energy Capacity 275 Matter Stores 300 Matter Capacity 300 Sight Range 16 Robot Scan Range 13 Terrain Scan Density 10 Additional Mass Support 18 Armor Coverage 225 Propulsion Shielding 33 Evasion (%) 64 Recoil Reduction 4 Offensive Hacking 10 Defensive Hacking 10 Item Schematics ----------------- Lgt. Treads | -9/Materials | Scanalyzed VTOL Module | -8/Materials | Scanalyzed Hacking Suite | -8/Materials | Scanalyzed Mic. Nuclear Core | -8/Materials | Scanalyzed Imp. ECM Suite | -8/Materials | Scanalyzed Lgt. Nuclear Core | -7/Factory | Scanalyzed Robot Schematics ------------------ None Fabricated ------------ Nothing Alien Tech Used ----------------- None Achievements -------------- 10k Club Hehehe Packrat Shopping List Significant Disruption True Hacker Use The Force Challenges ------------ None Game ------ Seed CompactWeaponCoupler Manual? 0 Play Time 01:49:45 Cumulative 10.3 hours Start 2020.05.28 @ 17:03:56 End 2020.05.29 @ 11:23:08 Sessions 11 Manual Loads 0 Difficulty Rogue Special Mode None Game No. 11 Rogue 10 Adventurer 0 Explorer 1 Win Type - Total 0 Types 0/0/0/0/0/0/0 Lore% 5 Gallery% 18 Achievement% 14 Wizard Run 0 Options --------- ASCII 1 Keyboard 1 Movement Numpad Keybinds 0 Fullscreen 1 Font 18/SmallcapsGlow Map View 76x50 Tactical HUD 1 Map Filters NONE Filters NONE Steam X RUN: d7c23c3d-c3e5-41ba-bdfb-e69b5d3fcfdc